bitfinex/quotes_BTCUSD_20241223
["timestamp","ask_amount","ask_price","bid_price","bid_amount"]
[1734966232645,0.21217154,94099.0,94085.0,0.212573]
[1734966232846,0.00015992,94107.0,94080.0,0.23978868]
[1734966233053,0.00015992,94107.0,94065.0,0.1]
[1734966233054,0.00015992,94107.0,94103.0,0.212533]
[1734966233467,0.00015992,94107.0,94103.0,0.425066]
[1734966233644,0.00033052,94107.0,94103.0,0.425066]
[1734966234077,0.00133052,94107.0,94103.0,0.425066]
[1734966234280,0.00133052,94107.0,94106.0,0.023]
[1734966234453,0.00033052,94107.0,94106.0,0.173]
[1734966235290,0.0001712,94138.0,94124.0,0.1]
[1734966235291,2e-07,94138.0,94124.0,0.1]
[1734966235501,0.0001714,94160.0,94146.0,0.385436]
[1734966235711,0.00016044,94147.0,94146.0,0.385436]
[1734966236945,0.00116044,94147.0,94146.0,0.385436]
[1734966237289,0.00016044,94147.0,94146.0,0.385436]
[1734966237503,0.00516044,94147.0,94146.0,0.48942232]
[1734966237706,4.4e-07,94147.0,94146.0,0.48942232]
[1734966237924,0.0001714,94160.0,94146.0,0.48942232]
[1734966237925,6.4e-07,94152.0,94151.0,0.123]
[1734966238130,6.4e-07,94152.0,94151.0,0.37698632]
[1734966238492,6.4e-07,94152.0,94148.0,0.212429]
[1734966239604,6.4e-07,94152.0,94148.0,0.424859]
[1734966240480,0.00700064,94152.0,94148.0,0.424859]
[1734966240687,6.4e-07,94152.0,94148.0,0.424859]
[1734966240891,6.4e-07,94152.0,94150.0,0.212426]
[1734966242314,6.4e-07,94152.0,94146.0,0.212436]
[1734966242620,6.4e-07,94152.0,94141.0,0.212447]
[1734966242830,6.4e-07,94152.0,94130.0,0.1]
[1734966242831,0.15,94150.0,94132.0,0.00016004]
[1734966243050,0.212465,94133.0,94132.0,0.00016004]
[1734966243251,0.46645132,94133.0,94132.0,0.00016004]
[1734966243448,0.56645132,94133.0,94132.0,0.00016004]
[1734966243658,0.212516,94111.0,94092.0,0.212557]
[1734966243915,0.10531477,94110.0,94092.0,0.212557]
[1734966244130,0.10531477,94110.0,94091.0,0.09436209]
[1734966244131,0.21252,94109.0,94091.0,0.09436209]
[1734966244334,0.10531477,94108.0,94091.0,0.30692009]
[1734966244543,0.00132845,94108.0,94103.0,0.212531]
[1734966244745,0.159,94133.0,94091.0,0.09436209]
[1734966244746,0.212467,94132.0,94091.0,0.00015992]
[1734966244949,0.212519,94109.0,94091.0,0.00015992]
[1734966245173,0.10398632,94108.0,94098.0,0.212542]
[1734966245580,0.0221467,94132.0,94091.0,0.00015992]
[1734966245581,0.21246,94136.0,94091.0,0.00015992]
[1734966245779,0.212469,94131.0,94092.0,0.10398632]
[1734966245988,0.212497,94119.0,94093.0,0.0001706]
[1734966246193,0.004,94110.0,94094.0,0.212553]
[1734966246407,0.212512,94113.0,94093.0,0.0001706]
[1734966246408,0.10531472,94109.0,94093.0,0.0001706]
[1734966246826,0.10398632,94104.0,94093.0,0.0001706]
[1734966247033,0.212548,94096.0,94093.0,0.0001706]
[1734966247247,0.35398632,94094.0,94093.0,0.0001706]
[1734966247744,0.25398632,94094.0,94093.0,0.0001706]
[1734966248178,0.10398632,94094.0,94093.0,0.0001706]
[1734966248639,0.10531497,94094.0,94093.0,0.0001706]
[1734966249246,0.10531506,94094.0,94093.0,0.0001706]
[1734966249601,0.28710097,94094.0,94093.0,0.0001706]
[1734966249804,0.28577223,94094.0,94093.0,0.0001706]
[1734966250008,0.25398632,94094.0,94093.0,0.0001706]
[1734966250414,0.15,94093.0,94060.0,0.42467182]
[1734966250623,0.212603,94072.0,94053.0,0.212645]
[1734966250822,0.1053152,94071.0,94060.0,0.212629]
[1734966251044,0.1053152,94071.0,94055.0,0.21264]
[1734966251601,0.1053152,94071.0,94056.0,0.212637]
[1734966251825,0.1053152,94071.0,94061.0,0.212626]
[1734966252001,0.1053152,94071.0,94063.0,0.212623]
[1734966252296,0.1053152,94071.0,94063.0,0.138623]
[1734966252512,0.1053152,94071.0,94044.0,0.023]
[1734966252513,0.1053152,94071.0,94058.0,0.212633]
[1734966253094,0.1063152,94071.0,94058.0,0.212633]
[1734966253306,0.1053152,94071.0,94058.0,0.212633]
[1734966253729,0.1063152,94071.0,94058.0,0.212633]
[1734966253944,0.1053152,94071.0,94044.0,0.023]
[1734966254356,0.1053152,94071.0,94060.0,0.212628]
[1734966254561,0.1053152,94071.0,94058.0,0.212634]
[1734966254766,0.1053152,94071.0,94058.0,0.21235439]
[1734966255186,0.1053152,94071.0,94051.0,0.21265]
[1734966255391,0.2264,94070.0,94026.0,0.15050076]
[1734966255604,0.15,94068.0,94027.0,0.15050076]
[1734966255814,0.212655,94050.0,94026.0,0.03313376]
[1734966255984,0.10531557,94049.0,94026.0,0.03313376]
[1734966256220,0.10531557,94049.0,94027.0,0.212702]
[1734966256428,0.25,94068.0,94027.0,0.212702]
[1734966256429,0.15,94068.0,94027.0,0.212702]
[1734966256632,0.15,94066.0,94023.0,0.15050076]
[1734966256842,0.15,94066.0,94020.0,0.23978868]
[1734966256843,0.10531543,94065.0,94045.0,0.212661]
[1734966257057,0.212621,94064.0,94029.0,0.03379716]
[1734966257399,0.10398632,94063.0,94045.0,0.00053412]
[1734966257607,0.212584,94081.0,94065.0,0.212618]
[1734966257830,0.1342436,94080.0,94045.0,0.00053412]
[1734966258038,0.10398632,94077.0,94045.0,0.00053412]
[1734966258242,0.03025728,94080.0,94045.0,0.00053412]
[1734966258243,0.212654,94050.0,94045.0,0.00053412]
[1734966258455,0.425314,94048.0,94045.0,0.00053412]
[1734966258655,0.10531563,94047.0,94045.0,0.00053412]
[1734966258862,0.212661,94046.0,94045.0,0.00053412]
[1734966259073,0.31664732,94046.0,94045.0,0.00053412]
[1734966259700,0.10398632,94046.0,94045.0,0.00053412]
[1734966260159,0.15,94068.0,94045.0,0.00053412]
[1734966260160,0.03422694,94078.0,94045.0,0.00053412]
[1734966260385,0.001,94046.0,94045.0,0.00053412]
[1734966261719,0.31657732,94077.0,94045.0,0.00053412]
[1734966261720,0.10398632,94077.0,94050.0,0.173]
[1734966261919,0.00132878,94076.0,94050.0,0.023]
[1734966262114,0.10398632,94073.0,94045.0,0.00053412]
[1734966262319,0.212637,94057.0,94045.0,0.00053412]
[1734966262520,0.212654,94050.0,94045.0,0.00053412]
[1734966262719,0.001,94046.0,94045.0,0.00053412]
[1734966262929,0.10398632,94046.0,94028.0,0.2127]
[1734966263143,0.212688,94035.0,94028.0,0.00016017]
[1734966263354,0.10531576,94034.0,94028.0,0.00016017]
[1734966263771,0.212691,94033.0,94028.0,0.00016017]
[1734966263976,0.10531576,94032.0,94028.0,0.00016017]
[1734966264192,0.10531576,94032.0,94029.0,0.4254]
[1734966264193,0.00132944,94032.0,94029.0,0.4254]
[1734966264387,0.0816,94046.0,94040.0,0.212674]
[1734966264589,0.0816,94046.0,94030.0,0.212697]
[1734966264590,0.31797958,94045.0,94030.0,0.212697]
[1734966264803,0.10398632,94045.0,94029.0,0.2127]
[1734966265006,0.10398632,94045.0,94033.0,0.212689]
[1734966265210,0.04022433,94044.0,94033.0,0.212689]
[1734966265416,0.10531563,94043.0,94028.0,0.00016017]
[1734966265618,0.21267,94042.0,94028.0,0.00016017]
[1734966265825,0.10531563,94041.0,94028.0,0.00016017]
[1734966266037,0.212687,94035.0,94028.0,0.00016017]
[1734966266246,0.0816,94046.0,94028.0,0.00016017]
[1734966266247,0.2127,94029.0,94028.0,0.00016017]
[1734966266476,0.56668632,94029.0,94028.0,0.00016017]
[1734966266690,0.212743,94010.0,93998.0,0.0001708]
[1734966266880,0.31672932,94010.0,93998.0,0.0001708]
[1734966267090,0.31672932,94010.0,94009.0,0.00024575]
[1734966267296,0.48759829,94010.0,94009.0,0.00024575]
[1734966267506,0.66299829,94010.0,94009.0,0.00024575]
[1734966267734,0.212768,93999.0,93998.0,0.0001708]
[1734966267953,0.56675432,93999.0,93998.0,0.0001708]
[1734966268156,0.77074064,93999.0,93998.0,0.0001708]
[1734966269417,0.47375432,93999.0,93998.0,0.0001708]
[1734966269829,0.10398632,93999.0,93998.0,0.0001708]
[1734966270038,0.009,93999.0,93998.0,0.0001708]
[1734966272036,0.00015972,94010.0,93998.0,0.0001708]
[1734966272235,0.00015972,94010.0,93986.0,8.54e-05]
[1734966272236,0.10398632,94009.0,93986.0,8.54e-05]
[1734966272438,0.009,93999.0,93986.0,8.54e-05]
[1734966272649,0.00015972,94010.0,93986.0,8.54e-05]
[1734966272650,0.00015972,94010.0,94009.0,0.212745]
[1734966273673,0.00015972,94010.0,94007.0,0.21275]
[1734966273873,0.10398632,94009.0,93998.0,0.21277]
[1734966274072,0.00132977,94008.0,93995.0,0.212776]
[1734966274281,0.10398632,94007.0,93985.0,0.023]
[1734966274486,0.0013298,94006.0,93986.0,0.1500854]
[1734966274686,0.10398632,94005.0,93986.0,8.54e-05]
[1734966275038,0.00132998,94004.0,93986.0,8.54e-05]
[1734966275157,0.10398632,94004.0,93986.0,8.54e-05]
[1734966275370,0.00015972,94010.0,93986.0,8.54e-05]
[1734966275581,0.10398632,94004.0,93986.0,8.54e-05]
[1734966275783,0.00132986,94003.0,93986.0,8.54e-05]
[1734966275990,0.212776,93996.0,93986.0,8.54e-05]
[1734966276199,0.02128967,94009.0,93986.0,8.54e-05]
[1734966276200,0.212779,93994.0,93986.0,8.54e-05]
[1734966276422,0.02128967,94009.0,93986.0,8.54e-05]
[1734966276423,0.425568,93992.0,93986.0,8.54e-05]
[1734966276631,0.1053164,93991.0,93986.0,8.54e-05]
[1734966276864,0.212789,93990.0,93986.0,8.54e-05]
[1734966277200,0.1053164,93989.0,93986.0,8.54e-05]
[1734966277405,0.1053164,93989.0,93976.0,0.21282]
[1734966277615,0.1053164,93989.0,93966.0,0.212842]
[1734966277809,0.212806,93982.0,93967.0,0.21284]
[1734966278019,0.10531656,93981.0,93967.0,0.21284]
[1734966278240,0.079,93993.0,93960.0,0.23987408]
[1734966278440,0.10398632,93992.0,93988.0,0.212791]
[1734966278589,0.10531647,93992.0,93988.0,0.212791]
[1734966278794,0.10531647,93992.0,93984.0,0.2128]
[1734966279014,0.004,93982.0,93964.0,0.023]
[1734966279236,0.10547617,93992.0,93981.0,0.212808]
[1734966279556,0.10547617,93992.0,93960.0,8.54e-05]
[1734966279763,0.11447617,93992.0,93966.0,0.212842]
[1734966279968,0.10547617,93992.0,93971.0,0.21283]
[1734966280176,0.2128,93985.0,93971.0,0.21283]
[1734966280379,0.10531652,93984.0,93970.0,0.212831]
[1734966280731,0.212804,93983.0,93970.0,0.212831]
[1734966280933,0.10531653,93982.0,93970.0,0.212831]
[1734966281366,0.10531653,93982.0,93960.0,8.54e-05]
[1734966281568,0.0001597,93992.0,93978.0,0.212814]
[1734966281569,0.00148982,93992.0,93978.0,0.212814]
[1734966281772,0.10531642,93991.0,93982.0,0.212805]
[1734966281969,0.03182501,93990.0,93970.0,0.212833]
[1734966282201,0.212799,93985.0,93963.0,8.54e-05]
[1734966282396,0.03182501,93990.0,93936.0,8.55e-05]
[1734966282397,0.212838,93969.0,93938.0,0.212906]
[1734966282605,0.10531671,93968.0,93949.0,0.21288]
[1734966282815,0.212849,93963.0,93946.0,0.212886]
[1734966283029,0.10531674,93962.0,93937.0,0.02925649]
[1734966283223,0.212854,93961.0,93941.0,0.00035524]
[1734966283434,0.10531684,93960.0,93943.0,0.212893]
[1734966283637,0.10531684,93960.0,93948.0,0.212882]
[1734966283841,0.10398632,93960.0,93941.0,0.00035524]
[1734966284052,0.15,93992.0,93963.0,0.212848]
[1734966284254,0.10398632,93983.0,93941.0,0.00088989]
[1734966284478,0.00133037,93982.0,93941.0,0.00088989]
[1734966284682,0.00133037,93982.0,93943.0,0.15]
[1734966284683,0.10398632,93981.0,93943.0,0.15]
[1734966284883,0.10398632,93974.0,93951.0,0.212875]
[1734966285093,0.10398632,93974.0,93970.0,0.212833]
[1734966285326,0.00133023,93973.0,93970.0,0.212833]
[1734966285532,0.10398632,93973.0,93970.0,0.425666]
[1734966285753,0.10531654,93973.0,93970.0,0.425666]
[1734966285973,0.00133022,93972.0,93970.0,0.212833]
[1734966286387,0.10398632,93971.0,93963.0,0.212849]
[1734966286605,0.00133036,93970.0,93956.0,0.212865]
[1734966286809,0.10398632,93969.0,93966.0,0.212841]
[1734966287014,0.00133034,93968.0,93963.0,0.212848]
[1734966287214,0.10398632,93967.0,93963.0,0.212848]
[1734966287418,0.10531668,93967.0,93950.0,0.23978868]
[1734966287620,0.10531668,93967.0,93963.0,0.212848]
[1734966287829,0.01054763,93966.0,93957.0,0.212861]
[1734966288033,0.10531677,93965.0,93941.0,0.00035524]
[1734966288446,0.10531677,93965.0,93953.0,0.21287]
[1734966288991,0.10398632,93965.0,93950.0,0.23978868]
[1734966289194,0.0013304,93964.0,93963.0,0.212849]
[1734966289423,0.00015964,93972.0,93971.0,0.212831]
[1734966290067,0.10414596,93972.0,93958.0,0.21286]
[1734966290290,0.11573131,93971.0,93945.0,0.023]
[1734966290500,0.11573131,93971.0,93944.0,0.15]
[1734966290501,0.10531671,93971.0,93969.0,0.212833]
[1734966290699,0.10398632,93971.0,93969.0,0.212833]
[1734966291306,0.00015964,93972.0,93969.0,0.425668]
[1734966292217,0.00015964,93972.0,93969.0,0.42567]
[1734966292415,0.002,93971.0,93969.0,0.42567]
[1734966292656,0.00015964,93972.0,93969.0,0.42567]
[1734966293033,0.00115964,93972.0,93969.0,0.42567]
[1734966293213,0.00015964,93972.0,93969.0,0.42567]
[1734966294131,0.000171,93971.0,93969.0,0.212835]
[1734966294310,0.000171,93971.0,93964.0,0.212845]
[1734966294311,0.10548756,93971.0,93964.0,0.212845]
[1734966294650,0.10648756,93971.0,93954.0,0.02915256]
[1734966295058,0.10648756,93971.0,93944.0,0.3629765]
[1734966295059,0.10548756,93971.0,93945.0,0.023]
[1734966295267,0.10548756,93971.0,93951.0,0.173]
[1734966295541,0.00150124,93971.0,93968.0,0.425674]
[1734966295771,0.001171,93971.0,93968.0,0.425674]
[1734966295946,0.001171,93971.0,93970.0,0.385833]
[1734966296264,0.000171,93971.0,93970.0,0.385833]
[1734966296562,0.007171,93971.0,93970.0,0.385833]
[1734966297367,0.007171,93971.0,93970.0,0.173]
[1734966297663,0.007171,93971.0,93969.0,0.173]
[1734966297925,0.007171,93971.0,93970.0,0.385833]
[1734966298334,0.00015964,93972.0,93971.0,0.273]
[1734966298335,6.4e-07,93972.0,93971.0,0.273]
[1734966298532,6.4e-07,93972.0,93971.0,0.15]
[1734966298936,6.4e-07,93972.0,93970.0,0.212833]
[1734966299361,6.4e-07,93972.0,93968.0,0.425674]
[1734966299997,0.10398632,93971.0,93961.0,0.212854]
[1734966300204,0.10398632,93971.0,93942.0,0.09488856]
[1734966300205,0.00133035,93970.0,93942.0,0.09488856]
[1734966300409,0.212848,93964.0,93942.0,0.09488856]
[1734966300621,0.212889,93946.0,93942.0,0.09488856]
[1734966300838,0.10531695,93945.0,93942.0,0.09488856]
[1734966301249,0.10531695,93945.0,93941.0,0.00035524]
[1734966301922,0.25531695,93945.0,93941.0,0.00035524]
[1734966302141,0.35398632,93945.0,93941.0,0.00035524]
[1734966302354,0.45452185,93945.0,93941.0,0.00035524]
[1734966302977,0.25398632,93945.0,93941.0,0.00035524]
[1734966303546,0.25698632,93945.0,93941.0,0.00035524]
[1734966304173,0.10698632,93945.0,93941.0,0.00035524]
[1734966304370,0.10698632,93945.0,93942.0,0.212895]
[1734966304371,0.003,93945.0,93942.0,0.212895]
[1734966305534,0.212845,93965.0,93942.0,0.212895]
[1734966305768,0.10531679,93964.0,93950.0,0.212877]
[1734966306232,0.10531679,93964.0,93954.0,0.212868]
[1734966306457,0.00017144,93972.0,93941.0,0.00035524]
[1734966306458,0.00133045,93968.0,93964.0,0.212845]
[1734966306693,0.10398632,93968.0,93964.0,0.212845]
[1734966306934,0.0013303,93967.0,93946.0,0.023]
[1734966307176,0.002,93964.0,93936.0,8.55e-05]
[1734966307424,0.212833,93971.0,93936.0,8.55e-05]
[1734966307425,0.10398632,93956.0,93936.0,8.55e-05]
[1734966307679,0.00133041,93963.0,93936.0,8.55e-05]
[1734966307680,0.10398632,93947.0,93936.0,8.55e-05]
[1734966307926,0.212907,93938.0,93936.0,8.55e-05]
[1734966308146,0.1053172,93937.0,93936.0,8.55e-05]
[1734966308385,0.2553172,93937.0,93936.0,8.55e-05]
[1734966308639,0.25398632,93937.0,93936.0,8.55e-05]
[1734966308871,0.10398632,93937.0,93936.0,8.55e-05]
[1734966309109,0.10398632,93937.0,93936.0,0.00062015]
[1734966309339,0.11438495,93937.0,93936.0,0.00062015]
[1734966309532,0.10531722,93937.0,93936.0,0.00062015]
[1734966309848,0.0822,93957.0,93936.0,0.00062015]
[1734966310051,0.10531689,93956.0,93936.0,0.00062015]
[1734966310464,0.212888,93946.0,93936.0,0.00062015]
[1734966310684,0.10531708,93945.0,93936.0,0.00062015]
[1734966311202,0.1,93981.0,93936.0,0.00062015]
[1734966311399,0.212868,93955.0,93938.0,0.212906]
[1734966311600,0.212903,93940.0,93936.0,0.00062015]
[1734966311818,0.212906,93938.0,93936.0,0.00062015]
[1734966312037,0.10531714,93937.0,93936.0,0.00062015]
[1734966312257,0.10531714,93937.0,93920.0,0.212945]
[1734966312439,0.10531714,93937.0,93920.0,0.000159]
[1734966312641,0.10531714,93937.0,93924.0,0.212936]
[1734966313011,0.009,93940.0,93920.0,0.23994768]
[1734966313206,0.21287,93954.0,93937.0,0.212907]
[1734966313413,0.105317,93953.0,93922.0,0.212942]
[1734966313616,0.105317,93953.0,93921.0,0.15]
[1734966313617,0.10398632,93953.0,93930.0,0.23978868]
[1734966313915,0.21284,93968.0,93950.0,0.212877]
[1734966314121,0.31816489,93964.0,93946.0,0.425774]
[1734966314329,0.10398632,93964.0,93955.0,0.212866]
[1734966314494,0.0921074,93995.0,93968.0,0.212837]
[1734966314669,0.0921074,93995.0,93968.0,0.425675]
[1734966314912,0.212786,93992.0,93950.0,0.23978868]
[1734966315115,0.00133022,93991.0,93967.0,0.21284]
[1734966315371,0.00133022,93991.0,93967.0,0.212999]
[1734966315698,0.0817,94014.0,93969.0,0.212836]
[1734966315895,0.00132999,94008.0,93971.0,0.385831]
[1734966316112,0.00132985,94013.0,93971.0,0.76675882]
[1734966316314,0.00132976,94012.0,93971.0,0.81245882]
[1734966316511,0.00132973,94020.0,93971.0,0.81245882]
[1734966316844,0.21405073,94020.0,93971.0,0.81245882]
[1734966317041,0.212721,94020.0,93971.0,0.81245882]
[1734966317350,0.21271,94025.0,93971.0,0.81245882]
[1734966317606,0.0013297,94024.0,94006.0,0.212751]
[1734966317859,0.10398632,94023.0,94006.0,0.212751]
[1734966318137,0.00132965,94022.0,94006.0,0.212751]
[1734966318418,0.0817,94032.0,93997.0,0.212772]
[1734966318419,0.0796,94053.0,94010.0,0.23978868]
[1734966318655,0.10398632,94052.0,94040.0,0.212673]
[1734966318847,0.10398632,94052.0,94036.0,0.212682]
[1734966319019,0.212652,94050.0,94030.0,0.212696]
[1734966319221,0.1053155,94049.0,94035.0,0.212686]
[1734966319581,0.1053155,94049.0,94024.0,0.21271]
[1734966319779,0.10531561,94049.0,94024.0,0.21271]
[1734966319991,0.212659,94047.0,94029.0,0.212699]
[1734966320260,0.21334068,94058.0,94013.0,0.0999415]
[1734966320261,0.00070568,94058.0,94030.0,0.23978868]
[1734966320397,0.104692,94058.0,94031.0,0.023]
[1734966320604,0.31795235,94057.0,94030.0,0.23978868]
[1734966320825,0.31662332,94057.0,94034.0,0.212687]
[1734966321017,0.31662332,94057.0,94008.0,0.1455]
[1734966321018,0.10398632,94048.0,94000.0,0.23978868]
[1734966321246,0.10398632,94048.0,94002.0,0.023]
[1734966321247,0.00132943,94047.0,94002.0,0.023]
[1734966321405,0.00132943,94047.0,93992.0,0.0776]
[1734966321406,0.212697,94031.0,94008.0,0.212746]
[1734966321764,0.212697,94031.0,94006.0,0.09488856]
[1734966321765,0.10531588,94030.0,94006.0,0.09488856]
[1734966322119,0.10531588,94030.0,94018.0,0.212723]
[1734966322322,0.15,94053.0,94010.0,0.23978868]
[1734966322527,0.15,94053.0,94006.0,0.09488856]
[1734966322528,0.212723,94019.0,94006.0,0.09488856]
[1734966322730,0.212727,94017.0,94006.0,0.09488856]
[1734966322958,0.10531593,94016.0,94006.0,0.09488856]
[1734966323162,0.00132961,94027.0,94007.0,0.21275]
[1734966323410,0.17510696,94053.0,93998.0,0.2897105]
[1734966323411,0.003,94030.0,94010.0,0.23978868]
[1734966323541,0.00132937,94046.0,94028.0,0.2127]
[1734966323746,0.00053455,94030.0,94028.0,0.2127]
[1734966323969,0.00053455,94030.0,94028.0,0.425402]
[1734966324348,0.00053455,94030.0,94029.0,0.27698632]
[1734966324999,0.00053455,94030.0,94021.0,0.0769415]
[1734966325202,0.00053455,94030.0,94022.0,0.425431]
[1734966325403,0.00053455,94030.0,94020.0,0.212719]
[1734966325611,0.00053455,94030.0,94026.0,0.212705]
[1734966325818,0.00053455,94030.0,94020.0,0.21272]
[1734966326025,0.10452087,94030.0,94013.0,0.212735]
[1734966326237,0.00132935,94029.0,94018.0,0.212723]
[1734966326654,0.00953455,94030.0,94011.0,0.023]
[1734966326867,0.00953455,94030.0,94020.0,0.23978868]
[1734966327071,0.00053455,94030.0,94028.0,0.212702]
[1734966327274,0.002,94029.0,94022.0,0.235716]
[1734966327473,0.002,94029.0,94028.0,0.212702]
[1734966328498,0.002,94029.0,94028.0,0.362702]
[1734966329122,0.212704,94028.0,94006.0,0.21275]
[1734966329324,0.1053158,94027.0,94004.0,0.02548957]
[1734966329524,0.1053158,94027.0,93990.0,0.0468]
[1734966329525,0.002,94029.0,94025.0,0.212708]
[1734966329795,0.10398632,94028.0,93996.0,0.0769415]
[1734966329998,0.00132949,94027.0,93996.0,0.0769415]
[1734966330202,0.00132949,94027.0,93991.0,0.212784]
[1734966330203,0.212745,94010.0,93991.0,0.212784]
[1734966330406,0.31806304,94009.0,93991.0,0.212784]
[1734966330608,0.00132974,94008.0,93995.0,0.212775]
[1734966330840,0.0803,94027.0,93988.0,0.21279]
[1734966330841,0.212666,94044.0,93996.0,0.18092782]
[1734966331023,0.212666,94044.0,94022.0,0.212714]
[1734966331269,0.00132929,94043.0,94010.0,0.23978868]
[1734966331481,0.212666,94045.0,94010.0,0.23978868]
[1734966331682,0.10452087,94030.0,94011.0,0.00333456]
[1734966331860,0.11331574,94029.0,94011.0,0.00333456]
[1734966332144,0.10531574,94029.0,94018.0,0.212725]
[1734966332372,0.10398632,94024.0,93980.0,0.23978868]
[1734966332579,0.15,94021.0,94019.0,0.00376795]
[1734966332784,0.15,94021.0,93981.0,0.00360951]
[1734966332785,0.212791,93989.0,93981.0,0.00360951]
[1734966332990,0.212802,93984.0,93981.0,0.00360951]
[1734966333183,0.212806,93982.0,93981.0,0.00360951]
[1734966333387,0.31679232,93982.0,93981.0,0.00360951]
[1734966333803,0.10398632,93982.0,93981.0,0.00360951]
[1734966334624,0.212744,94010.0,93981.0,0.00360951]
[1734966334831,0.00053422,94005.0,93981.0,0.00360951]
[1734966335038,0.212761,94002.0,93982.0,0.212806]
[1734966335244,0.10531622,94001.0,93987.0,0.212795]
[1734966335455,0.10531622,94001.0,93983.0,0.00385741]
[1734966335669,0.10531622,94001.0,93988.0,0.00385303]
[1734966335932,0.10531622,94001.0,93981.0,0.00360951]
[1734966335933,0.212768,93999.0,93981.0,0.00360951]
[1734966336117,0.212799,93986.0,93981.0,0.00360951]
[1734966336322,0.10531643,93985.0,93981.0,0.00360951]
[1734966336744,0.212768,93999.0,93981.0,0.00360951]
[1734966336944,0.10531627,93998.0,93981.0,0.00360951]
[1734966337152,0.10531627,93998.0,93982.0,0.212806]
[1734966337258,0.14405475,93997.0,93981.0,0.00360951]
[1734966337463,0.212801,93985.0,93983.0,0.00431145]
[1734966337701,0.10531645,93984.0,93981.0,0.00360951]
[1734966338403,0.00133013,93984.0,93981.0,0.00360951]
[1734966338656,0.10398632,93984.0,93981.0,0.00360951]
[1734966338877,0.10531637,93983.0,93981.0,0.00360951]
[1734966339104,0.31812237,93983.0,93981.0,0.00360951]
[1734966339308,0.25398632,93982.0,93981.0,0.00360951]
[1734966339761,0.437829,93972.0,93971.0,8.54e-05]
[1734966339935,0.54181532,93972.0,93971.0,8.54e-05]
[1734966341028,0.53681532,93972.0,93971.0,8.54e-05]
[1734966341813,0.84080164,93972.0,93971.0,8.54e-05]
[1734966342012,0.212876,93951.0,93950.0,4e-05]
[1734966342274,0.61596232,93951.0,93950.0,0.000199]
[1734966342489,0.79776232,93951.0,93950.0,0.000199]
[1734966342689,0.82076232,93951.0,93950.0,0.000199]
[1734966342891,0.92474864,93951.0,93950.0,0.000199]
[1734966343303,0.92674864,93951.0,93950.0,1e-06]
[1734966343515,0.58589,93945.0,93944.0,8.54e-05]
[1734966343700,0.68987632,93945.0,93944.0,8.54e-05]
[1734966344262,0.68987632,93945.0,93944.0,4e-07]
[1734966344483,0.212958,93915.0,93914.0,8.55e-05]
[1734966344834,0.31694432,93915.0,93914.0,0.00024586]
[1734966345460,0.10398632,93915.0,93914.0,0.00024586]
[1734966346059,0.10498632,93915.0,93914.0,0.00024586]
[1734966346698,0.001,93915.0,93914.0,0.00024586]
[1734966347288,0.001,93915.0,93908.0,0.212974]
[1734966347556,0.001,93915.0,93913.0,0.15]
[1734966347903,0.001,93915.0,93913.0,0.173]
[1734966348115,0.001,93915.0,93914.0,0.23596]
[1734966348318,0.212864,93957.0,93917.0,0.15]
[1734966348521,0.0762,93966.0,93918.0,0.023]
[1734966348522,0.00016015,93942.0,93918.0,0.023]
[1734966348721,0.10398632,93941.0,93916.0,0.023]
[1734966348925,0.00133071,93940.0,93915.0,0.212956]
[1734966349131,0.001,93915.0,93911.0,0.173]
[1734966349552,0.00133073,93938.0,93926.0,0.212932]
[1734966349764,0.10398632,93937.0,93930.0,0.212922]
[1734966349989,0.10398632,93937.0,93926.0,0.212932]
[1734966350201,0.10398632,93937.0,93931.0,0.00519599]
[1734966350410,0.10398632,93937.0,93924.0,0.212938]
[1734966350633,0.00133074,93936.0,93932.0,0.00382418]
[1734966350779,0.31689932,93935.0,93918.0,0.212951]
[1734966350987,0.00133081,93934.0,93918.0,0.212951]
[1734966351217,0.10398632,93933.0,93919.0,0.00382892]
[1734966351421,0.10531713,93933.0,93920.0,0.212947]
[1734966351621,0.00133081,93938.0,93924.0,0.212936]
[1734966351832,0.00149089,93942.0,93920.0,0.00384358]
[1734966352037,0.009,93935.0,93931.0,0.212921]
[1734966352453,0.00016015,93942.0,93935.0,0.212911]
[1734966352653,0.00016015,93942.0,93933.0,0.212917]
[1734966352870,0.00016015,93942.0,93936.0,0.00238834]
[1734966353075,0.00016015,93942.0,93934.0,0.00518919]
[1734966353720,0.00016015,93942.0,93930.0,0.212922]
[1734966353927,0.10398632,93941.0,93935.0,0.00237979]
[1734966354152,0.10398632,93941.0,93922.0,0.23503942]
[1734966354153,0.00133072,93940.0,93926.0,0.212931]
[1734966354371,0.00133072,93940.0,93910.0,0.23978868]
[1734966354372,0.00133068,93939.0,93920.0,0.15]
[1734966354589,0.11453404,93938.0,93927.0,0.00231001]
[1734966354793,0.212919,93932.0,93931.0,0.002]
[1734966354972,0.10398632,93932.0,93921.0,0.0023122]
[1734966355210,0.10398632,93931.0,93921.0,0.0023122]
[1734966355416,0.0001712,93933.0,93910.0,0.23978868]
[1734966355417,0.00150207,93933.0,93910.0,0.23978868]
[1734966355620,0.00150207,93933.0,93904.0,8.55e-05]
[1734966355621,0.31690632,93932.0,93915.0,0.212957]
[1734966355822,0.21425288,93931.0,93912.0,0.212963]
[1734966356000,0.10398632,93930.0,93916.0,0.00231403]
[1734966356205,0.10398632,93930.0,93913.0,0.00231512]
[1734966356418,0.00133092,93929.0,93914.0,0.21296]
[1734966356628,0.10398632,93928.0,93914.0,0.21296]
[1734966356856,0.10398632,93928.0,93916.0,0.212956]
[1734966357067,0.0041712,93933.0,93927.0,0.21293]
[1734966357277,0.0041712,93933.0,93920.0,0.23978868]
[1734966357478,0.0041712,93933.0,93932.0,0.212919]
[1734966357688,0.0041712,93933.0,93927.0,0.023]
[1734966357913,0.0001712,93933.0,93932.0,0.00233742]
[1734966358118,0.0001712,93933.0,93911.0,0.15]
[1734966358119,0.10415752,93933.0,93912.0,0.023]
[1734966358330,0.003,93930.0,93920.0,0.23978868]
[1734966358546,0.003,93930.0,93925.0,0.212934]
[1734966358757,0.003,93930.0,93926.0,0.023]
[1734966358970,0.003,93930.0,93928.0,0.123]
[1734966359206,0.00016015,93942.0,93941.0,0.1]
[1734966359409,0.212785,93992.0,93952.0,0.023]
[1734966359623,0.10531648,93986.0,93965.0,0.212844]
[1734966359858,0.10531648,93986.0,93965.0,0.212843]
[1734966360070,0.10531648,93986.0,93954.0,0.173]
[1734966360279,0.00053465,93987.0,93972.0,0.023]